[Event "Live Chess"]
[Site "Chess.com"]
[Date "2023.05.20"]
[Round "-"]
[White "CocheseUK"]
[Black "bristolunichess"]
[Result "1-0"]
[WhiteElo "1215"]
[BlackElo "1840"]
[TimeControl "300"]
[EndTime "10:17:10 PDT"]
[Termination "CocheseUK won on time"]

1. e4 {[%clk 0:04:50.5]} 1... c6 {[%clk 0:04:53.6]} 2. d4 {[%clk 0:04:48.3]}
2... d5 {[%clk 0:04:43.5]} 3. e5 {[%clk 0:04:44]} 3... Bf5 {[%clk 0:04:36.6]} 4.
Nf3 {[%clk 0:04:34.4]} 4... e6 {[%clk 0:04:19.5]} 5. Bd3 {[%clk 0:04:32.4]} 5...
Bg6 {[%clk 0:03:56.5]} 6. Bxg6 {[%clk 0:04:26.7]} 6... hxg6 {[%clk 0:03:53.2]}
7. Bg5 {[%clk 0:04:04.2]} 7... Be7 {[%clk 0:03:40.1]} 8. Bxe7 {[%clk 0:03:58.1]}
8... Nxe7 {[%clk 0:03:35.5]} 9. Nc3 {[%clk 0:03:56.6]} 9... Nd7 {[%clk
0:03:05.1]} 10. Ng5 {[%clk 0:03:51]} 10... Nb6 {[%clk 0:02:33.2]} 11. Qf3 {[%clk
0:03:34.1]} 11... Nf5 {[%clk 0:01:51.6]} 12. Qf4 {[%clk 0:03:04.2]} 12... Rh4
{[%clk 0:01:21.1]} 13. Qc1 {[%clk 0:03:01.9]} 13... Rxd4 {[%clk 0:01:12]} 14.
Nf3 {[%clk 0:02:55]} 14... Rc4 {[%clk 0:00:47.8]} 15. Qd2 {[%clk 0:02:30.8]}
15... Qc7 {[%clk 0:00:38.8]} 16. b3 {[%clk 0:02:13.4]} 16... Rc5 {[%clk
0:00:30.8]} 17. O-O {[%clk 0:01:24.2]} 17... O-O-O {[%clk 0:00:26.7]} 18. Ng5
{[%clk 0:01:11.8]} 18... Rh8 {[%clk 0:00:16.4]} 19. Na4 {[%clk 0:00:47.6]} 19...
f6 {[%clk 0:00:14.5]} 20. Nxe6 {[%clk 0:00:42.4]} 20... Qxe5 {[%clk 0:00:11.3]}
21. Nf4 {[%clk 0:00:33.1]} 21... d4 {[%clk 0:00:08]} 22. Qd3 {[%clk 0:00:30]}
22... Qxf4 {[%clk 0:00:05.4]} 23. Rfe1 {[%clk 0:00:28.1]} 23... Qxh2+ {[%clk
0:00:03.5]} 24. Kf1 {[%clk 0:00:26.3]} 24... Qh1+ {[%clk 0:00:02.1]} 25. Ke2
{[%clk 0:00:25.1]} 25... Re8+ {[%clk 0:00:00.4]} 26. Kd2 {[%clk 0:00:23.8]} 1-0

[Event "Live Chess"]
[Site "Chess.com"]
[Date "2023.05.20"]
[Round "-"]
[White "djw60"]
[Black "LodeshChess"]
[Result "1-0"]
[WhiteElo "2139"]
[BlackElo "888"]
[TimeControl "300"]
[EndTime "10:17:13 PDT"]
[Termination "djw60 won by checkmate"]

1. Nf3 {[%clk 0:04:58.5]} 1... c6 {[%clk 0:04:58.6]} 2. d4 {[%clk 0:04:55.5]}
2... d5 {[%clk 0:04:57.7]} 3. c4 {[%clk 0:04:54.1]} 3... Bg4 {[%clk 0:04:56.5]}
4. e3 {[%clk 0:04:50.8]} 4... Bxf3 {[%clk 0:04:54.8]} 5. Qxf3 {[%clk 0:04:49]}
5... e6 {[%clk 0:04:54.4]} 6. Nc3 {[%clk 0:04:47.6]} 6... Bb4 {[%clk 0:04:52.4]}
7. Bd2 {[%clk 0:04:46.5]} 7... Nf6 {[%clk 0:04:50.8]} 8. Bd3 {[%clk 0:04:44.3]}
8... Nbd7 {[%clk 0:04:47.3]} 9. O-O {[%clk 0:04:43.1]} 9... O-O {[%clk
0:04:46.3]} 10. Rfe1 {[%clk 0:04:36.9]} 10... dxc4 {[%clk 0:04:45]} 11. Bxc4
{[%clk 0:04:35.2]} 11... Nb6 {[%clk 0:04:40.7]} 12. Bb3 {[%clk 0:04:31.4]} 12...
Nbd5 {[%clk 0:04:38.8]} 13. e4 {[%clk 0:04:21.8]} 13... Nxc3 {[%clk 0:04:30.3]}
14. bxc3 {[%clk 0:04:20.5]} 14... Be7 {[%clk 0:04:27.2]} 15. Bc2 {[%clk
0:04:16.7]} 15... h6 {[%clk 0:04:15.6]} 16. e5 {[%clk 0:04:13.4]} 16... Nd5
{[%clk 0:04:14.4]} 17. Qe4 {[%clk 0:04:08.2]} 17... f5 {[%clk 0:03:51.8]} 18.
exf6 {[%clk 0:04:06.5]} 18... Bxf6 {[%clk 0:03:51.4]} 19. Qh7+ {[%clk
0:04:00.1]} 19... Kf7 {[%clk 0:03:50.3]} 20. Bxh6 {[%clk 0:03:37.7]} 20... Rh8
{[%clk 0:03:09.6]} 21. Qg6+ {[%clk 0:03:35.1]} 21... Kg8 {[%clk 0:03:08.7]} 22.
Bd2 {[%clk 0:03:20.7]} 22... Qd6 {[%clk 0:03:04.9]} 23. g3 {[%clk 0:03:19.1]}
23... Qe7 {[%clk 0:02:29.9]} 24. Bf5 {[%clk 0:03:12.1]} 24... Qc7 {[%clk
0:01:34.2]} 25. Bxe6+ {[%clk 0:03:06.9]} 25... Kf8 {[%clk 0:01:33.7]} 26. c4
{[%clk 0:02:55.9]} 26... Nb6 {[%clk 0:01:20.7]} 27. Bb4+ {[%clk 0:02:52.8]}
27... Be7 {[%clk 0:01:07.4]} 28. Qf7# {[%clk 0:02:51.6]} 1-0

[Event "Live Chess"]
[Site "Chess.com"]
[Date "2023.05.20"]
[Round "-"]
[White "stevefairhurst"]
[Black "LL220284LL"]
[Result "0-1"]
[WhiteElo "544"]
[BlackElo "2417"]
[TimeControl "300"]
[EndTime "10:17:16 PDT"]
[Termination "LL220284LL won by checkmate"]

1. e4 {[%clk 0:04:59.2]} 1... c6 {[%clk 0:04:58.2]} 2. Nf3 {[%clk 0:04:58.1]}
2... d6 {[%clk 0:04:57.8]} 3. Bd3 {[%clk 0:04:55.7]} 3... g6 {[%clk 0:04:56.3]}
4. Qe2 {[%clk 0:04:54.9]} 4... Bg7 {[%clk 0:04:53.2]} 5. O-O {[%clk 0:04:54]}
5... Nd7 {[%clk 0:04:51.6]} 6. b3 {[%clk 0:04:52.8]} 6... Bxa1 {[%clk
0:04:46.3]} 7. Nc3 {[%clk 0:04:49.3]} 7... Nc5 {[%clk 0:04:43.1]} 8. Ba3 {[%clk
0:04:48.2]} 8... Nxd3 {[%clk 0:04:40]} 9. Qxd3 {[%clk 0:04:45.4]} 9... Bxc3
{[%clk 0:04:39.4]} 10. Qxc3 {[%clk 0:04:44.1]} 10... Nf6 {[%clk 0:04:38.5]} 11.
Qe3 {[%clk 0:04:41.7]} 11... O-O {[%clk 0:04:36.2]} 12. d3 {[%clk 0:04:34.1]}
12... e5 {[%clk 0:04:32.8]} 13. Bb4 {[%clk 0:04:28.6]} 13... c5 {[%clk
0:04:31.3]} 14. Be1 {[%clk 0:04:27.3]} 14... a5 {[%clk 0:04:28.8]} 15. c4 {[%clk
0:04:25.8]} 15... a4 {[%clk 0:04:27.5]} 16. bxa4 {[%clk 0:04:24.4]} 16... Rxa4
{[%clk 0:04:26.1]} 17. Qe2 {[%clk 0:04:20.8]} 17... Bg4 {[%clk 0:04:23.5]} 18.
h3 {[%clk 0:04:18.4]} 18... Bxf3 {[%clk 0:04:22.3]} 19. Qxf3 {[%clk 0:04:16.9]}
19... Rxa2 {[%clk 0:04:19.8]} 20. Kh1 {[%clk 0:04:03]} 20... Nh5 {[%clk
0:04:18.2]} 21. Kh2 {[%clk 0:03:59.2]} 21... Qg5 {[%clk 0:04:14.3]} 22. g4
{[%clk 0:03:54.9]} 22... Qf4+ {[%clk 0:04:12.4]} 23. Qg3 {[%clk 0:03:50.3]}
23... Nxg3 {[%clk 0:04:10.6]} 24. Rg1 {[%clk 0:03:47.2]} 24... Ne2+ {[%clk
0:04:07.6]} 25. Rg3 {[%clk 0:03:43.3]} 25... Nxg3 {[%clk 0:04:06.6]} 26. d4
{[%clk 0:03:37.6]} 26... Rxf2+ {[%clk 0:04:05.1]} 27. Bxf2 {[%clk 0:03:36.3]}
27... Qxf2# {[%clk 0:04:05]} 0-1

[Event "Live Chess"]
[Site "Chess.com"]
[Date "2023.05.20"]
[Round "-"]
[White "YrrriKharkiv"]
[Black "ramses-IIG"]
[Result "1-0"]
[WhiteElo "2085"]
[BlackElo "759"]
[TimeControl "300"]
[EndTime "10:17:18 PDT"]
[Termination "YrrriKharkiv won by resignation"]

1. d4 {[%clk 0:04:56.8]} 1... d5 {[%clk 0:04:59.9]} 2. c4 {[%clk 0:04:55.3]}
2... dxc4 {[%clk 0:04:58.5]} 3. e3 {[%clk 0:04:53]} 3... b5 {[%clk 0:04:58.4]}
4. a4 {[%clk 0:04:51.4]} 4... c6 {[%clk 0:04:57.7]} 5. axb5 {[%clk 0:04:50.3]}
5... cxb5 {[%clk 0:04:56.8]} 6. Qf3 {[%clk 0:04:49.4]} 6... Nc6 {[%clk
0:04:44.6]} 7. Qxc6+ {[%clk 0:04:48.2]} 7... Bd7 {[%clk 0:04:38.9]} 8. Qf3
{[%clk 0:04:42.4]} 8... e6 {[%clk 0:04:35.8]} 9. Ne2 {[%clk 0:04:38.9]} 9...
Bb4+ {[%clk 0:04:33.4]} 10. Bd2 {[%clk 0:04:36.9]} 10... Bxd2+ {[%clk
0:04:30.8]} 11. Nxd2 {[%clk 0:04:36.5]} 11... Qc7 {[%clk 0:04:25.1]} 12. Qxa8+
{[%clk 0:04:34]} 12... Ke7 {[%clk 0:04:23]} 13. Rxa7 {[%clk 0:04:30.9]} 1-0

[Event "Live Chess"]
[Site "Chess.com"]
[Date "2023.05.20"]
[Round "-"]
[White "ossie57"]
[Black "SavagePawn7"]
[Result "1-0"]
[WhiteElo "1842"]
[BlackElo "776"]
[TimeControl "300"]
[EndTime "10:17:20 PDT"]
[Termination "ossie57 won by checkmate"]

1. d4 {[%clk 0:04:57.9]} 1... Nf6 {[%clk 0:04:51.3]} 2. Nc3 {[%clk 0:04:56.6]}
2... e6 {[%clk 0:04:41.5]} 3. e4 {[%clk 0:04:47.4]} 3... d5 {[%clk 0:04:36.4]}
4. e5 {[%clk 0:04:43.6]} 4... Ne4 {[%clk 0:04:28.9]} 5. Nxe4 {[%clk 0:04:42.3]}
5... dxe4 {[%clk 0:04:27.7]} 6. c3 {[%clk 0:04:41.5]} 6... Nc6 {[%clk
0:04:22.3]} 7. Qg4 {[%clk 0:04:40.1]} 7... f5 {[%clk 0:04:03.1]} 8. exf6 {[%clk
0:04:34.9]} 8... Qxf6 {[%clk 0:03:57.1]} 9. Qxe4 {[%clk 0:04:33.6]} 9... e5
{[%clk 0:03:34.3]} 10. Bb5 {[%clk 0:04:28.1]} 10... Bd7 {[%clk 0:03:13.8]} 11.
Nf3 {[%clk 0:04:16.2]} 11... O-O-O {[%clk 0:03:08.8]} 12. Bg5 {[%clk 0:04:09.5]}
12... Bf5 {[%clk 0:02:54.9]} 13. Qxc6 {[%clk 0:03:57.8]} 13... bxc6 {[%clk
0:02:44.3]} 14. Ba6+ {[%clk 0:03:50.9]} 14... Kb8 {[%clk 0:02:37]} 15. Bxf6
{[%clk 0:03:50.3]} 15... gxf6 {[%clk 0:02:32.7]} 16. dxe5 {[%clk 0:03:49]} 16...
fxe5 {[%clk 0:02:22.5]} 17. O-O {[%clk 0:03:48.3]} 17... Bd6 {[%clk 0:02:17.2]}
18. Rad1 {[%clk 0:03:37.5]} 18... e4 {[%clk 0:02:13.6]} 19. Nd4 {[%clk
0:03:35.4]} 19... Bg4 {[%clk 0:01:58.1]} 20. Nxc6+ {[%clk 0:03:32.2]} 20... Ka8
{[%clk 0:01:51.8]} 21. Nxd8 {[%clk 0:03:23.6]} 21... Bxd1 {[%clk 0:01:48.5]} 22.
Rxd1 {[%clk 0:03:11.7]} 22... Rxd8 {[%clk 0:01:45]} 23. g3 {[%clk 0:03:10]}
23... Kb8 {[%clk 0:01:35]} 24. c4 {[%clk 0:03:03.7]} 24... c5 {[%clk 0:01:24.8]}
25. Bb5 {[%clk 0:02:56.5]} 25... Kc7 {[%clk 0:01:18.3]} 26. Ba4 {[%clk
0:02:54.7]} 26... Be5 {[%clk 0:01:10.9]} 27. Rxd8 {[%clk 0:02:51.1]} 27... Kxd8
{[%clk 0:01:09.1]} 28. Bc2 {[%clk 0:02:49.5]} 28... Bxb2 {[%clk 0:01:07.8]} 29.
Bxe4 {[%clk 0:02:48.8]} 29... h6 {[%clk 0:01:04.1]} 30. Kg2 {[%clk 0:02:47.5]}
30... Ke7 {[%clk 0:01:04]} 31. f4 {[%clk 0:02:44.7]} 31... Kf6 {[%clk
0:01:03.9]} 32. Kf3 {[%clk 0:02:44.1]} 32... h5 {[%clk 0:00:57.5]} 33. h3 {[%clk
0:02:43]} 33... a5 {[%clk 0:00:47.1]} 34. g4 {[%clk 0:02:41.8]} 34... h4 {[%clk
0:00:44.7]} 35. g5+ {[%clk 0:02:40.8]} 35... Kg7 {[%clk 0:00:41.7]} 36. Kg4
{[%clk 0:02:40.3]} 36... a4 {[%clk 0:00:39.2]} 37. Kxh4 {[%clk 0:02:39.4]} 37...
a3 {[%clk 0:00:39.1]} 38. Kg4 {[%clk 0:02:38.5]} 38... Bd4 {[%clk 0:00:28.5]}
39. h4 {[%clk 0:02:35.8]} 39... Bf6 {[%clk 0:00:27.2]} 40. gxf6+ {[%clk
0:02:34.3]} 40... Kxf6 {[%clk 0:00:26.2]} 41. h5 {[%clk 0:02:33.7]} 41... Kg7
{[%clk 0:00:24.4]} 42. Kg5 {[%clk 0:02:32.3]} 42... Kh8 {[%clk 0:00:20.5]} 43.
h6 {[%clk 0:02:28.5]} 43... Kg8 {[%clk 0:00:18.9]} 44. h7+ {[%clk 0:02:25.9]}
44... Kh8 {[%clk 0:00:16.6]} 45. Kg4 {[%clk 0:02:22.4]} 45... Kg7 {[%clk
0:00:15]} 46. Kf3 {[%clk 0:02:20.2]} 46... Kf8 {[%clk 0:00:12.1]} 47. h8=Q+
{[%clk 0:02:18.9]} 47... Kf7 {[%clk 0:00:10.6]} 48. Bd5+ {[%clk 0:02:18]} 48...
Kg6 {[%clk 0:00:08.6]} 49. Qe5 {[%clk 0:02:11.3]} 49... Kh6 {[%clk 0:00:06.3]}
50. Qg5+ {[%clk 0:02:09.9]} 50... Kh7 {[%clk 0:00:04.9]} 51. f5 {[%clk
0:02:04.6]} 51... Kh8 {[%clk 0:00:03.2]} 52. f6 {[%clk 0:02:01.5]} 52... Kh7
{[%clk 0:00:01.5]} 53. Qg7# {[%clk 0:02:00.3]} 1-0

[Event "Live Chess"]
[Site "Chess.com"]
[Date "2023.05.20"]
[Round "-"]
[White "chrisbradgate"]
[Black "luckywookie"]
[Result "1-0"]
[WhiteElo "846"]
[BlackElo "732"]
[TimeControl "300"]
[EndTime "10:17:31 PDT"]
[Termination "chrisbradgate won on time"]

1. d4 {[%clk 0:04:57.5]} 1... c6 {[%clk 0:04:55.1]} 2. Bf4 {[%clk 0:04:55.5]}
2... d5 {[%clk 0:04:49.1]} 3. e3 {[%clk 0:04:54.4]} 3... Nf6 {[%clk 0:04:39.9]}
4. c3 {[%clk 0:04:50.7]} 4... Bf5 {[%clk 0:04:33.1]} 5. Bd3 {[%clk 0:04:47.5]}
5... Bg4 {[%clk 0:04:26.1]} 6. Be2 {[%clk 0:04:43.5]} 6... e6 {[%clk 0:04:11.2]}
7. Bxg4 {[%clk 0:04:40.2]} 7... Nxg4 {[%clk 0:04:09.2]} 8. Qxg4 {[%clk
0:04:30.1]} 8... Bd6 {[%clk 0:04:06]} 9. Bxd6 {[%clk 0:04:27.2]} 9... Qxd6
{[%clk 0:04:03.9]} 10. Qf4 {[%clk 0:04:18.5]} 10... Qe7 {[%clk 0:03:55.7]} 11.
Nf3 {[%clk 0:04:15.7]} 11... f6 {[%clk 0:03:49.2]} 12. O-O {[%clk 0:04:09.7]}
12... O-O {[%clk 0:03:41.7]} 13. Nbd2 {[%clk 0:04:03.8]} 13... e5 {[%clk
0:03:40.1]} 14. Qg3 {[%clk 0:04:02]} 14... e4 {[%clk 0:03:34.3]} 15. Ne1 {[%clk
0:03:52.5]} 15... Nd7 {[%clk 0:03:18.1]} 16. h3 {[%clk 0:03:47.8]} 16... h5
{[%clk 0:03:13.6]} 17. Nb3 {[%clk 0:03:21.8]} 17... g5 {[%clk 0:03:10.1]} 18.
Nc2 {[%clk 0:03:13.9]} 18... b6 {[%clk 0:02:48.5]} 19. Rfe1 {[%clk 0:03:05]}
19... Rf7 {[%clk 0:02:37.9]} 20. f3 {[%clk 0:03:03.9]} 20... f5 {[%clk 0:02:28]}
21. fxe4 {[%clk 0:02:59.6]} 21... fxe4 {[%clk 0:02:25.1]} 22. Rf1 {[%clk
0:02:54.5]} 22... Raf8 {[%clk 0:02:20.4]} 23. Rae1 {[%clk 0:02:40.6]} 23... Rg7
{[%clk 0:01:50]} 24. Rxf8+ {[%clk 0:02:34.6]} 24... Nxf8 {[%clk 0:01:44.5]} 25.
Rf1 {[%clk 0:02:30.5]} 25... g4 {[%clk 0:01:37.2]} 26. h4 {[%clk 0:02:09.9]}
26... Nd7 {[%clk 0:01:07.7]} 27. Nb4 {[%clk 0:02:07.5]} 27... Qe6 {[%clk
0:00:53.1]} 28. Nd2 {[%clk 0:01:57.1]} 28... Rf7 {[%clk 0:00:49.5]} 29. Rxf7
{[%clk 0:01:53.3]} 29... Qxf7 {[%clk 0:00:48.3]} 30. Qf2 {[%clk 0:01:50.1]}
30... Nf6 {[%clk 0:00:35.4]} 31. Nxc6 {[%clk 0:01:44.6]} 31... Kg7 {[%clk
0:00:30.8]} 32. Ne5 {[%clk 0:01:42.7]} 32... Qe8 {[%clk 0:00:13.5]} 33. Nb3
{[%clk 0:01:34.5]} 33... Qb5 {[%clk 0:00:07.8]} 34. Kh2 {[%clk 0:01:30.2]} 34...
a6 {[%clk 0:00:06]} 35. Nc1 {[%clk 0:01:10.1]} 35... a5 {[%clk 0:00:05.1]} 36.
b4 {[%clk 0:01:05.9]} 36... Qa4 {[%clk 0:00:03]} 37. g3 {[%clk 0:00:59.3]} 37...
axb4 {[%clk 0:00:02]} 38. cxb4 {[%clk 0:00:56.8]} 38... Qxb4 {[%clk 0:00:00.2]}
39. Qe2 {[%clk 0:00:53]} 1-0

[Event "Live Chess"]
[Site "Chess.com"]
[Date "2023.05.20"]
[Round "-"]
[White "ReeceHockton"]
[Black "jameskwong"]
[Result "0-1"]
[WhiteElo "331"]
[BlackElo "2162"]
[TimeControl "300"]
[EndTime "10:17:33 PDT"]
[Termination "jameskwong won by resignation"]

1. d4 {[%clk 0:04:57]} 1... Nf6 {[%clk 0:04:57.9]} 2. e3 {[%clk 0:04:44.8]} 2...
d5 {[%clk 0:04:51.8]} 3. Nf3 {[%clk 0:04:41]} 3... c5 {[%clk 0:04:48.8]} 4. c3
{[%clk 0:04:39.7]} 4... Nc6 {[%clk 0:04:47.9]} 5. dxc5 {[%clk 0:04:37.4]} 5...
a5 {[%clk 0:04:45.3]} 6. Bb5 {[%clk 0:04:29.5]} 6... e6 {[%clk 0:04:36.9]} 7.
Nbd2 {[%clk 0:04:16.2]} 7... Bxc5 {[%clk 0:04:35.9]} 8. Nd4 {[%clk 0:03:59.9]}
8... Bd7 {[%clk 0:04:32.7]} 9. Bxc6 {[%clk 0:03:58.5]} 9... bxc6 {[%clk
0:04:31.3]} 10. a4 {[%clk 0:03:53.7]} 10... e5 {[%clk 0:04:27.9]} 11. Nxc6
{[%clk 0:03:47.6]} 11... Bxc6 {[%clk 0:04:26.1]} 12. Qe2 {[%clk 0:03:43.6]}
12... O-O {[%clk 0:04:23.5]} 13. O-O {[%clk 0:03:42.4]} 13... Re8 {[%clk
0:04:18.5]} 14. Nc4 {[%clk 0:03:36.3]} 14... dxc4 {[%clk 0:04:15.7]} 15. Qxc4
{[%clk 0:03:35.3]} 15... Qd5 {[%clk 0:04:06.2]} 16. Qxd5 {[%clk 0:03:31.3]}
16... Bxd5 {[%clk 0:04:05]} 17. Rd1 {[%clk 0:03:30.9]} 17... Bb3 {[%clk
0:04:00.8]} 18. Rd5 {[%clk 0:03:25.2]} 18... Bxd5 {[%clk 0:03:55.5]} 0-1

[Event "Live Chess"]
[Site "Chess.com"]
[Date "2023.05.20"]
[Round "-"]
[White "mattihelenius2"]
[Black "gmnorfolk"]
[Result "0-1"]
[WhiteElo "445"]
[BlackElo "2182"]
[TimeControl "300"]
[EndTime "10:17:36 PDT"]
[Termination "gmnorfolk won by resignation"]

1. d4 {[%clk 0:04:58.3]} 1... Nf6 {[%clk 0:04:58.1]} 2. c3 {[%clk 0:04:57.3]}
2... g6 {[%clk 0:04:56.6]} 3. Nf3 {[%clk 0:04:56.5]} 3... Bg7 {[%clk 0:04:56.2]}
4. Bg5 {[%clk 0:04:51.5]} 4... d6 {[%clk 0:04:54.2]} 5. e3 {[%clk 0:04:45.7]}
5... O-O {[%clk 0:04:52]} 6. Bc4 {[%clk 0:04:43.4]} 6... c5 {[%clk 0:04:46.9]}
7. d5 {[%clk 0:04:36.2]} 7... Nbd7 {[%clk 0:04:38.6]} 8. Qd3 {[%clk 0:04:26.7]}
8... a6 {[%clk 0:04:34.1]} 9. Nbd2 {[%clk 0:04:23.6]} 9... b5 {[%clk 0:04:32.7]}
10. Bb3 {[%clk 0:04:19]} 10... c4 {[%clk 0:04:32]} 11. Qd4 {[%clk 0:04:16.8]}
11... cxb3 {[%clk 0:04:26.6]} 12. Nxb3 {[%clk 0:04:13.5]} 12... Bb7 {[%clk
0:04:22.5]} 13. O-O {[%clk 0:04:03.2]} 13... Nxd5 {[%clk 0:04:15.9]} 14. Qe4
{[%clk 0:03:47.2]} 14... Qc7 {[%clk 0:04:07.7]} 15. Rad1 {[%clk 0:03:37.5]}
15... Nxc3 {[%clk 0:03:58.3]} 16. Qd3 {[%clk 0:03:22.3]} 16... Nxd1 {[%clk
0:03:55.5]} 17. Qxd1 {[%clk 0:03:21.3]} 17... Nc5 {[%clk 0:03:51.1]} 18. Nxc5
{[%clk 0:03:18.4]} 18... dxc5 {[%clk 0:03:48.9]} 19. Qb3 {[%clk 0:03:08.4]}
19... c4 {[%clk 0:03:40.6]} 20. Qb4 {[%clk 0:02:57.2]} 20... Bxf3 {[%clk
0:03:37.3]} 21. gxf3 {[%clk 0:02:55.7]} 21... Bf6 {[%clk 0:03:34.9]} 22. Bxf6
{[%clk 0:02:53.7]} 22... exf6 {[%clk 0:03:34]} 23. Rd1 {[%clk 0:02:46.9]} 23...
Rfd8 {[%clk 0:03:32.4]} 24. Re1 {[%clk 0:02:43.5]} 24... Qd6 {[%clk 0:03:29.3]}
25. Qa5 {[%clk 0:02:35.8]} 25... Qd2 {[%clk 0:03:27.1]} 26. Kf1 {[%clk
0:02:04.2]} 26... Qxa5 {[%clk 0:03:15.6]} 0-1

[Event "Live Chess"]
[Site "Chess.com"]
[Date "2023.05.20"]
[Round "-"]
[White "therealab0ne"]
[Black "JoeyCage"]
[Result "0-1"]
[WhiteElo "676"]
[BlackElo "2302"]
[TimeControl "300"]
[EndTime "10:17:38 PDT"]
[Termination "JoeyCage won by resignation"]

1. e4 {[%clk 0:04:59.7]} 1... c5 {[%clk 0:04:57.3]} 2. Nc3 {[%clk 0:04:57.9]}
2... Nc6 {[%clk 0:04:56]} 3. Nge2 {[%clk 0:04:57.3]} 3... a6 {[%clk 0:04:55]} 4.
g3 {[%clk 0:04:56.8]} 4... b5 {[%clk 0:04:54.2]} 5. Bg2 {[%clk 0:04:56.3]} 5...
Bb7 {[%clk 0:04:53.5]} 6. a4 {[%clk 0:04:43.1]} 6... b4 {[%clk 0:04:52.3]} 7.
Nd5 {[%clk 0:04:33.7]} 7... e6 {[%clk 0:04:51.1]} 8. Nef4 {[%clk 0:04:07.7]}
8... exd5 {[%clk 0:04:49.6]} 9. exd5 {[%clk 0:04:05.7]} 9... Nd4 {[%clk
0:04:47.7]} 10. O-O {[%clk 0:03:51.9]} 10... Bd6 {[%clk 0:04:44.6]} 11. d3
{[%clk 0:03:44.3]} 11... Nf6 {[%clk 0:04:41.4]} 12. Re1+ {[%clk 0:03:42.7]}
12... Kf8 {[%clk 0:04:40.1]} 13. Be3 {[%clk 0:03:07.7]} 13... Nf5 {[%clk
0:04:37.5]} 14. d4 {[%clk 0:02:27.3]} 14... c4 {[%clk 0:04:33.6]} 15. Be4 {[%clk
0:02:14.7]} 15... Nxe4 {[%clk 0:04:30.8]} 16. Qg4 {[%clk 0:02:08.3]} 16... Nxe3
{[%clk 0:04:27]} 17. fxe3 {[%clk 0:02:06.6]} 17... Nf6 {[%clk 0:04:25.8]} 18.
Qh4 {[%clk 0:01:53]} 18... Ne4 {[%clk 0:04:21.5]} 19. Rf1 {[%clk 0:01:39.4]}
19... Qxh4 {[%clk 0:04:17.8]} 20. gxh4 {[%clk 0:01:37.5]} 20... Ke7 {[%clk
0:04:14.3]} 21. b3 {[%clk 0:01:26]} 21... c3 {[%clk 0:04:12.5]} 22. Nd3 {[%clk
0:01:22.2]} 22... g6 {[%clk 0:04:07.5]} 23. Kg2 {[%clk 0:01:05.8]} 23... f5
{[%clk 0:04:06.1]} 24. Ne5 {[%clk 0:00:53.1]} 24... Bxd5 {[%clk 0:04:02.4]} 0-1

[Event "Live Chess"]
[Site "Chess.com"]
[Date "2023.05.20"]
[Round "-"]
[White "RedRook90"]
[Black "seabuck"]
[Result "0-1"]
[WhiteElo "1959"]
[BlackElo "1843"]
[TimeControl "300"]
[EndTime "10:17:39 PDT"]
[Termination "seabuck won by checkmate"]

1. c4 {[%clk 0:04:59.3]} 1... e6 {[%clk 0:04:58.2]} 2. g3 {[%clk 0:04:57.6]}
2... c5 {[%clk 0:04:52.5]} 3. Nf3 {[%clk 0:04:56]} 3... Nc6 {[%clk 0:04:51.3]}
4. Bg2 {[%clk 0:04:55.3]} 4... Nf6 {[%clk 0:04:50.5]} 5. Nc3 {[%clk 0:04:54.3]}
5... Be7 {[%clk 0:04:46.3]} 6. O-O {[%clk 0:04:53.8]} 6... O-O {[%clk
0:04:45.3]} 7. b3 {[%clk 0:04:51.8]} 7... d5 {[%clk 0:04:44]} 8. cxd5 {[%clk
0:04:50.9]} 8... exd5 {[%clk 0:04:42.5]} 9. d4 {[%clk 0:04:50.3]} 9... b6 {[%clk
0:04:31.2]} 10. Ne5 {[%clk 0:04:35.6]} 10... Bb7 {[%clk 0:03:49.8]} 11. Nxc6
{[%clk 0:04:27.9]} 11... Bxc6 {[%clk 0:03:48.3]} 12. dxc5 {[%clk 0:04:27.1]}
12... Bxc5 {[%clk 0:03:37.2]} 13. Bg5 {[%clk 0:04:26.1]} 13... Qd6 {[%clk
0:03:25.3]} 14. Bxf6 {[%clk 0:04:22.2]} 14... Qxf6 {[%clk 0:03:11.6]} 15. Nxd5
{[%clk 0:04:17.6]} 15... Bxd5 {[%clk 0:03:05.3]} 16. Bxd5 {[%clk 0:04:17.5]}
16... Rad8 {[%clk 0:02:56.6]} 17. e4 {[%clk 0:04:17]} 17... Rfe8 {[%clk
0:02:47.9]} 18. Qc2 {[%clk 0:04:08.3]} 18... a5 {[%clk 0:02:38.2]} 19. Rad1
{[%clk 0:04:02.1]} 19... Qe5 {[%clk 0:02:25.6]} 20. Kg2 {[%clk 0:03:58]} 20...
Rd6 {[%clk 0:02:09.7]} 21. f4 {[%clk 0:03:47.2]} 21... Qh5 {[%clk 0:02:04.2]}
22. e5 {[%clk 0:03:41.1]} 22... Rh6 {[%clk 0:01:50.2]} 23. h4 {[%clk 0:03:28.4]}
23... Rg6 {[%clk 0:01:47]} 24. Rh1 {[%clk 0:03:15.6]} 24... Qg4 {[%clk 0:01:39]}
25. Qe4 {[%clk 0:03:00.3]} 25... Qxg3+ {[%clk 0:01:36.5]} 26. Kf1 {[%clk
0:02:49.3]} 26... Qf2# {[%clk 0:01:35.1]} 0-1

[Event "Live Chess"]
[Site "Chess.com"]
[Date "2023.05.20"]
[Round "-"]
[White "LutherSullivan"]
[Black "Singapourfeuj"]
[Result "0-1"]
[WhiteElo "1841"]
[BlackElo "2248"]
[TimeControl "300"]
[EndTime "10:17:43 PDT"]
[Termination "Singapourfeuj won by checkmate"]

1. e4 {[%clk 0:04:54.3]} 1... g6 {[%clk 0:04:58.2]} 2. d4 {[%clk 0:04:53]} 2...
c5 {[%clk 0:04:55.8]} 3. d5 {[%clk 0:04:47.5]} 3... Bg7 {[%clk 0:04:54.4]} 4.
Nc3 {[%clk 0:04:37.9]} 4... d6 {[%clk 0:04:53]} 5. h4 {[%clk 0:04:33.3]} 5... h5
{[%clk 0:04:51.4]} 6. Nf3 {[%clk 0:04:28]} 6... Nf6 {[%clk 0:04:47.8]} 7. Be2
{[%clk 0:04:20.5]} 7... Bg4 {[%clk 0:04:46.5]} 8. Ng5 {[%clk 0:04:17.2]} 8...
Nbd7 {[%clk 0:04:42.6]} 9. f3 {[%clk 0:04:13.6]} 9... Ne5 {[%clk 0:04:40.6]} 10.
fxg4 {[%clk 0:04:11.7]} 10... Nfxg4 {[%clk 0:04:39.6]} 11. O-O {[%clk
0:04:03.8]} 11... Bf6 {[%clk 0:04:35]} 12. Bf4 {[%clk 0:03:44.1]} 12... Qb6
{[%clk 0:04:31.8]} 13. Bb5+ {[%clk 0:03:37.4]} 13... Kf8 {[%clk 0:04:29.4]} 14.
Kh1 {[%clk 0:03:16]} 14... a6 {[%clk 0:04:17.5]} 15. Be2 {[%clk 0:03:14.3]}
15... Qxb2 {[%clk 0:04:14.1]} 16. Na4 {[%clk 0:02:56.3]} 16... Qa3 {[%clk
0:04:09.6]} 17. c3 {[%clk 0:02:53.3]} 17... b5 {[%clk 0:04:00.8]} 18. Nb6 {[%clk
0:02:51.8]} 18... Rb8 {[%clk 0:03:58]} 19. Bxg4 {[%clk 0:02:48.8]} 19... hxg4
{[%clk 0:03:55.4]} 20. Bxe5 {[%clk 0:02:46.9]} 20... Rxh4+ {[%clk 0:03:52.9]}
21. Kg1 {[%clk 0:02:43.3]} 21... Bxg5 {[%clk 0:03:51.6]} 22. Nd7+ {[%clk
0:02:25.5]} 22... Kg8 {[%clk 0:03:50.4]} 23. g3 {[%clk 0:02:10.4]} 23... Be3+
{[%clk 0:03:44.7]} 24. Kg2 {[%clk 0:02:08]} 24... Qb2+ {[%clk 0:03:43.8]} 25.
Rf2 {[%clk 0:02:04.1]} 25... Qxf2# {[%clk 0:03:42.1]} 0-1